fUST/lending_fUST_20260123
["ID","MTS","AMOUNT","RATE_DAILY","PERIOD"]
[403104713,1769166150746,-82.84263127,0.00012319,2]
[403104714,1769166150766,-500.0,0.00012319,2]
[403104715,1769166150786,-417.15736873,0.00012319,2]
[403104716,1769166151195,-333.45,0.00010787,2]
[403104717,1769166151217,-400.14,0.00011506,2]
[403104718,1769166151239,-82.84263127,0.00012319,2]
[403104719,1769166151259,-183.56736873,0.00012319,2]
[403104720,1769166151631,-466.83,0.00012225,2]
[403104721,1769166151652,-316.43263127,0.00012319,2]
[403104722,1769166151674,-216.73736873,0.00012319,2]
[403104723,1769166152029,-283.26263127,0.00012319,2]
[403104724,1769166152049,-500.0,0.00012319,2]
[403104725,1769166152071,-216.73736873,0.00012319,2]
[403104726,1769166152300,-283.26263127,0.00012319,2]
[403104727,1769166152322,-500.0,0.00012319,2]
[403104728,1769166152343,-216.73736873,0.00012319,2]
[403104729,1769166152931,-283.26263127,0.00012319,2]
[403104730,1769166152970,-500.0,0.00012319,2]
[403104731,1769166152989,-216.73736873,0.00012319,2]
[403104732,1769166153102,-283.26263127,0.00012319,2]
[403104733,1769166153124,-500.0,0.00012319,2]
[403104734,1769166153144,-216.73736873,0.00012319,2]
[403104735,1769166153478,-283.26263127,0.00012319,2]
[403104736,1769166153500,-500.0,0.00012319,2]
[403104737,1769166153520,-216.73736873,0.00012319,2]
[403104738,1769166153834,-283.26263127,0.00012319,2]
[403104739,1769166153855,-500.0,0.00012319,2]
[403104740,1769166153875,-216.73736873,0.00012319,2]
[403104741,1769166154239,-283.26263127,0.00012319,2]
[403104742,1769166154260,-500.0,0.00012319,2]
[403104743,1769166154281,-216.73736873,0.00012319,2]
[403104744,1769166154601,-283.26263127,0.00012319,2]
[403104745,1769166154623,-500.0,0.00012319,2]
[403104746,1769166154644,-216.73736873,0.00012319,2]
[403104747,1769166154977,-283.26263127,0.00012319,2]
[403104748,1769166155000,-500.0,0.00012319,2]
[403104749,1769166155022,-216.73736873,0.00012319,2]
[403104750,1769166156524,-1000.0,0.00012196,2]
[403104751,1769166157749,-1000.0,0.00012196,2]
[403104752,1769166158138,-1000.0,0.00012196,2]
[403104753,1769166158501,-1000.0,0.00012196,2]
[403104754,1769166159977,-1000.0,0.00012196,2]
[403104755,1769166161384,-283.26263127,0.00012319,2]
[403104756,1769166161404,-500.0,0.00012319,2]
[403104757,1769166161426,-216.73736873,0.00012319,2]
[403104758,1769166162169,-283.26263127,0.00012319,2]
[403104759,1769166162190,-500.0,0.00012319,2]
[403104760,1769166162212,-216.73736873,0.00012319,2]
[403104761,1769166163698,-664.63209172,0.00012099,2]
[403104762,1769166163721,-283.26263127,0.00012319,2]
[403104763,1769166163744,-52.10527701,0.00012319,2]
[403104764,1769166165347,-447.89472299,0.00012319,2]
[403104765,1769166165368,-500.0,0.00012319,2]
[403104766,1769166165388,-52.10527701,0.00012319,2]
[403104767,1769166170167,-447.89472299,0.00012319,2]
[403104768,1769166170187,-52.10527701,0.00012319,2]
[403104769,1769166190585,-1000.0,0.00012196,2]
[403104770,1769166200931,-300.00328744,0.00012196,2]
[403104771,1769166204843,-307.2240708,0.00012196,2]
[403104772,1769166208230,-229.29265395,0.00012196,2]
[403104773,1769166210954,-176.89329581,0.00012196,2]
[403104774,1769166212009,-1000.0,0.00012196,2]
[403104775,1769166212473,-175.48463812,0.00012196,2]
[403104776,1769166214075,-323.10670419,0.00012196,2]
[403104777,1769166214101,-1000.0,0.00012196,2]
[403104778,1769166215125,-487.99534969,0.00012196,2]
[403104779,1769166215146,-215.57896218,0.00012318,2]
[403104780,1769166215167,-296.42568813,0.00012318,2]
[403104781,1769166215586,-153.96684583,0.00012318,2]
[403104782,1769166216038,-49.60746604,0.00012318,2]
[403104783,1769166216059,-297.01117222,0.00012318,2]
[403104784,1769166216079,-300.0,0.00012318,2]
[403104785,1769166216101,-353.38136174,0.00012319,2]
[403104786,1769166217241,-1000.0,0.00012319,2]
[403104787,1769166218932,-1000.0,0.00012319,2]
[403104788,1769166219968,150.0,7.886e-05,2]
[403104789,1769166220189,-1000.0,0.00012319,2]
[403104790,1769166220386,150.0,8.603e-05,2]
[403104791,1769166220641,-184.43475781,0.00012319,2]
[403104792,1769166221242,179.66,9.32e-05,2]
[403104793,1769166221340,-1000.0,0.00012319,2]
[403104794,1769166221670,239.55,0.00010037,2]
[403104795,1769166222073,299.44,0.00010754,2]
[403104796,1769166222198,-207.50424573,0.00012195,2]
[403104797,1769166222466,-1000.0,0.00012195,2]
[403104798,1769166222499,359.32,0.00011471,2]
[403104799,1769166223750,-419.21,0.00012188,2]
[403104800,1769166224094,-580.79,0.00012195,2]
[403104801,1769166225211,-1000.0,0.00012195,2]
[403104802,1769166225303,-233.98461083,0.00012195,2]
[403104803,1769166226391,-1000.0,0.00012195,2]
[403104804,1769166227702,-977.72114344,0.00012195,2]
[403104805,1769166227728,-22.27885656,0.00012319,2]
[403104806,1769166229012,-1000.0,0.00012319,2]
[403104807,1769166230219,-1000.0,0.00012319,2]
[403104808,1769166231509,-1000.0,0.00012319,2]
[403104809,1769166232705,-1000.0,0.00012319,2]
[403104810,1769166252916,5000.0,0.00011996,2]
[403104811,1769166261998,3552.4227371,0.00011368,2]
[403104812,1769166274890,5000.0,0.00011996,2]
[403104813,1769166283768,-160.93662789,0.00012099,2]
[403104814,1769166289375,-60.24761398,0.00012099,2]
[403104815,1769166289394,-239.75238602,0.000121,2]
[403104816,1769166292263,150.0,7.875e-05,2]
[403104817,1769166292727,150.0,8.59e-05,2]
[403104818,1769166293138,150.0,9.306e-05,2]
[403104819,1769166293571,150.0,0.00010022,2]
[403104820,1769166293992,185.07,0.00010738,2]
[403104821,1769166294406,222.08,0.00011454,2]
[403104822,1769166297295,3992.86,0.00011996,2]
[403104823,1769166297318,1007.14,0.00011996,2]
[403104824,1769166319249,2442.49799842,0.00011996,2]
[403104825,1769166362060,150.0,7.859e-05,2]
[403104826,1769166362480,187.09,8.573e-05,2]
[403104827,1769166363399,280.63,9.288e-05,2]
[403104828,1769166363824,374.18,0.00010002,2]
[403104829,1769166364353,467.72,0.00010717,2]
[403104830,1769166364622,561.27,0.00011431,2]
[403104831,1769166436808,150.0,7.91e-05,2]
[403104832,1769166437209,184.36,8.63e-05,2]
[403104833,1769166437647,276.54,9.349e-05,2]
[403104834,1769166438059,368.72,0.00010068,2]
[403104835,1769166438583,460.9,0.00010787,2]
[403104836,1769166439022,553.08,0.00011506,2]
[403104837,1769166441125,2535.88200158,0.00011996,2]
[403104838,1769166441148,2464.11799842,0.00011996,2]
[403104839,1769166463928,5000.0,0.00011996,2]
[403104840,1769166471715,2535.89200158,0.00011996,2]
[403104841,1769166471740,1968.58274102,0.00011996,2]
[403104842,1769166486993,5000.0,0.00011996,2]
[403104843,1769166509742,3031.42725898,0.00011996,2]
[403104844,1769166509769,1968.57274102,0.00011996,2]
[403104845,1769166513018,153.79,7.834e-05,2]
[403104846,1769166513416,307.58,8.546e-05,2]
[403104847,1769166514325,461.38,9.259e-05,2]
[403104848,1769166514757,615.17,9.971e-05,2]
[403104849,1769166515174,768.96,0.00010683,2]
[403104850,1769166515589,922.75,0.00011395,2]
[403104851,1769166524820,1090.21382486,0.00011996,2]
[403104852,1769166532607,3711.59343412,0.00011996,2]
[403104853,1769166532630,1288.40656588,0.00011996,2]
[403104854,1769166555104,5000.0,0.00011996,2]
[403104855,1769166561690,300.0,0.00011322,2]
[403104856,1769166570259,1546.31075238,0.00011996,2]
[403104857,1769166578168,1865.29268174,0.00011996,2]
[403104858,1769166578190,3134.70731826,0.00011996,2]
[403104859,1769166590655,173.06,7.903e-05,2]
[403104860,1769166591576,346.12,8.621e-05,2]
[403104861,1769166592688,519.17,9.34e-05,2]
[403104862,1769166592841,692.23,0.00010058,2]
[403104863,1769166593242,865.29,0.00010777,2]
[403104864,1769166593665,1038.35,0.00011495,2]
[403104865,1769166600407,3231.08268174,0.00011996,2]
[403104866,1769166600430,1768.91731826,0.00011996,2]
[403104867,1769166608781,3423.28951038,0.00011996,2]
[403104868,1769166610036,-61.28108057,0.000121,2]
[403104869,1769166610057,-177.24161765,0.000121,2]
[403104870,1769166611542,-305.01,0.000121,2]
[403104871,1769166623981,4807.80317136,0.00011996,2]
[403104872,1769166628714,-166.18740678,0.00011996,2]
[403104899,1769166632447,-26.00942186,0.00011996,2]
[403104901,1769166632457,-108.74838235,0.000121,2]
[403104903,1769166632467,-243.42537843,0.00012135,2]
[403104906,1769166632476,-1211.41,0.00012214,2]
[403104908,1769166632485,-189.53596908,0.00012229,2]
[403104909,1769166632495,-800.0,0.00012253,2]
[403104910,1769166632504,-2230.315306,0.00012315,2]
[403104911,1769166632513,-300.0,0.00012315,2]
[403104912,1769166632523,-1015.0,0.00012315,2]
[403104913,1769166632532,-15624.78750937,0.00012316,2]
[403104936,1769166638486,-1177.8415112,0.00012316,2]
[403104937,1769166638498,-219.12318278,0.00012316,2]
[403104938,1769166638507,-500.0,0.00012316,2]
[403104939,1769166638516,-241.75984309,0.00012316,2]
[403104940,1769166638584,-258.24015691,0.00012316,2]
[403104941,1769166638594,-500.0,0.00012316,2]
[403104942,1769166638603,-500.0,0.00012316,2]
[403104943,1769166638612,-500.0,0.00012316,2]
[403104944,1769166638621,-500.0,0.00012316,2]
[403104945,1769166638631,-404.5685211,0.00012316,2]
[403104946,1769166638643,-95.4314789,0.00012316,2]
[403104947,1769166638652,-500.0,0.00012316,2]
[403104948,1769166638662,-248.6034712,0.00012316,2]
[403104949,1769166638671,-500.0,0.00012316,2]
[403104950,1769166638681,-500.0,0.00012316,2]
[403104951,1769166638694,-86.38043368,0.00012316,2]
[403104952,1769166638767,7012.019358,0.00011322,2]
[403104958,1769166640791,-3e-08,0.00012316,2]
[403104959,1769166642282,-16.25838192,0.00012316,2]
[403104974,1769166643646,-397.36118437,0.00012316,2]
[403104975,1769166643656,-228.79994112,0.00012316,2]
[403105012,1769166646515,-461.02753643,0.00012193,2]
[403105019,1769166646567,-3699.52282203,0.00012193,2]
[403105021,1769166646579,-839.44964154,0.00012193,2]
[403105023,1769166646588,-271.20005888,0.00012316,2]
[403105024,1769166646597,-243.04635657,0.00012316,2]
[403105025,1769166646606,-500.0,0.00012316,2]
[403105026,1769166646616,-500.0,0.00012316,2]
[403105027,1769166646626,-500.0,0.00012316,2]
[403105029,1769166646635,-500.0,0.00012316,2]
[403105031,1769166646646,-500.0,0.00012316,2]
[403105033,1769166646655,-160.31028501,0.00012316,2]
[403105187,1769166669362,2987.990642,0.0001199,2]
[403105188,1769166669385,2012.009358,0.0001199,2]
[403105189,1769166669662,150.0,7.826e-05,2]
[403105190,1769166670052,258.18,8.538e-05,2]
[403105191,1769166670451,387.27,9.249e-05,2]
[403105192,1769166670873,516.36,9.961e-05,2]
[403105193,1769166671286,645.45,0.00010672,2]
[403105194,1769166671703,774.54,0.00011383,2]
[403105195,1769166681424,-903.63,0.00012095,2]
[403105196,1769166681447,-96.37,0.00012193,2]
[403105197,1769166682818,-1000.0,0.00012193,2]
[403105198,1769166684238,-1000.0,0.00012193,2]
[403105199,1769166684594,-1000.0,0.00012193,2]
[403105200,1769166685032,-700.0,0.0001199,2]
[403105201,1769166685054,-300.0,0.00012193,2]
[403105202,1769166685377,-967.21836647,0.00012193,2]
[403105203,1769166685399,-32.78163353,0.00012254,2]
[403105204,1769166685752,-205.77523733,0.00012254,2]
[403105205,1769166685775,-276.0,0.00012315,2]
[403105206,1769166685798,-339.68971499,0.00012316,2]
[403105207,1769166685820,-178.53504768,0.00012316,2]
[403105208,1769166687916,-321.46495232,0.00012316,2]
[403105209,1769166687940,-191.06287435,0.00012316,2]
[403105210,1769166687963,-487.47217333,0.00012316,2]
[403105211,1769166689511,-12.52782667,0.00012316,2]
[403105212,1769166689534,-421.44323542,0.00012316,2]
[403105213,1769166689555,-500.0,0.00012316,2]
[403105214,1769166689577,-66.02893791,0.00012316,2]
[403105215,1769166690146,-433.97106209,0.00012316,2]
[403105216,1769166690168,-500.0,0.00012316,2]
[403105217,1769166690191,-66.02893791,0.00012316,2]
[403105218,1769166717846,-1397.77984935,0.0001195,2]
[403105219,1769166723471,-261.98346765,0.0001195,2]
[403105220,1769166726430,-419.66449406,0.0001195,2]
[403105221,1769166727511,-330.10752351,0.0001195,2]
[403105222,1769166729734,-499.87,0.0001195,2]
[403105223,1769166731306,-279.52155573,0.0001195,2]
[403105224,1769166735494,-536.95213082,0.0001195,2]
[403105225,1769166738821,-424.29204605,0.0001195,2]
[403105226,1769166741513,-211.78,0.0001195,2]
[403105227,1769166744106,-211.85000003,0.0001195,2]
[403105228,1769166745446,150.0,7.866e-05,2]
[403105229,1769166745587,254.79,8.581e-05,2]
[403105230,1769166745623,-365.98891021,0.0001195,2]
[403105231,1769166745996,382.19,9.296e-05,2]
[403105232,1769166746399,509.58,0.00010011,2]
[403105233,1769166746803,636.98,0.00010726,2]
[403105234,1769166747202,764.37,0.00011442,2]
[403105235,1769166822270,150.0,7.853e-05,2]
[403105236,1769166822667,186.12,8.567e-05,2]
[403105237,1769166823091,279.17,9.281e-05,2]
[403105238,1769166823482,372.23,9.995e-05,2]
[403105239,1769166823887,465.29,0.00010709,2]
[403105240,1769166824564,558.35,0.00011422,2]
[403105241,1769166883210,5000.0,0.0001194,2]
[403105242,1769166891283,290.94,0.0001194,2]
[403105243,1769166891305,3847.0829686,0.0001194,2]
[403105244,1769166898067,150.0,7.878e-05,2]
[403105245,1769166898480,157.83,8.594e-05,2]
[403105246,1769166898885,236.75,9.311e-05,2]
[403105247,1769166899282,315.66,0.00010027,2]
[403105248,1769166899599,3469.99619773,0.0001194,2]
[403105249,1769166899676,394.58,0.00010743,2]
[403105250,1769166900115,473.5,0.00011459,2]
[403105251,1769166907885,954.61083367,0.0001194,2]
[403105252,1769166907908,4045.38916633,0.0001194,2]
[403105253,1769166973213,150.0,7.883e-05,2]
[403105254,1769166973645,268.61,8.6e-05,2]
[403105255,1769166974010,402.92,9.316e-05,2]
[403105256,1769166974401,537.22,0.00010033,2]
[403105257,1769166974829,671.53,0.0001075,2]
[403105258,1769166988727,-278.27681128,0.00011466,2]
[403105259,1769166991429,-297.37287191,0.00011466,2]
[403105260,1769166992989,-230.19031681,0.00011466,2]
[403105261,1769166993011,-124.51188172,0.0001164,2]
[403105262,1769167049211,-113.1031646,0.0001164,2]
[403105263,1769167049235,-263.43619253,0.00011674,2]
[403105264,1769167049813,150.0,7.904e-05,2]
[403105265,1769167050198,200.24,8.623e-05,2]
[403105266,1769167050613,300.36,9.341e-05,2]
[403105267,1769167051017,400.48,0.0001006,2]
[403105268,1769167051415,500.6,0.00010778,2]
[403105269,1769167052796,-266.04630616,0.00011674,2]
[403105270,1769167054953,-179.86451129,0.00011674,2]
[403105271,1769167057926,-165.18982704,0.00011497,2]
[403105272,1769167059584,-175.53582627,0.00011497,2]
[403105273,1769167068628,-210.13648968,0.00011497,2]
[403105274,1769167109274,-187.10106338,0.00011382,2]
[403105275,1769167110769,-268.58798382,0.00011382,2]
[403105276,1769167112289,-210.26563712,0.00011382,2]
[403105277,1769167113783,-231.82,0.00011268,2]
[403105278,1769167120164,-239.65763146,0.00011268,2]
[403105279,1769167121151,5000.0,0.00011147,2]
[403105280,1769167123369,-28.52236854,0.00011268,2]
[403105281,1769167123393,-130.82404885,0.00011382,2]
[403105282,1769167126307,-311.39758807,0.00011382,2]
[403105283,1769167129165,150.0,8.101e-05,2]
[403105284,1769167129549,158.72,8.838e-05,2]
[403105285,1769167129761,-202.73907349,0.00011382,2]
[403105286,1769167129963,238.08,9.574e-05,2]
[403105287,1769167130362,317.44,0.00010311,2]
[403105288,1769167133952,-167.68035717,0.00011047,2]
[403105289,1769167135668,-229.11964283,0.00011047,2]
[403105290,1769167135689,-13.05642271,0.00011382,2]
[403105291,1769167137880,-220.9127898,0.00011382,2]
[403105292,1769167141684,-332.33501486,0.00011382,2]
[403105293,1769167143815,-269.25042385,0.00011268,2]
[403105294,1769167145333,-500.0,0.00011268,2]
[403105295,1769167146854,-164.77856008,0.00011268,2]
[403105296,1769167149447,-155.48240284,0.00011268,2]
[403105297,1769167151574,-220.70488236,0.00011268,2]
[403105298,1769167153464,-178.58301551,0.00011268,2]
[403105299,1769167155002,-153.02160932,0.00011268,2]
[403105300,1769167156546,-232.04407171,0.00011268,2]
[403105301,1769167157928,-250.73548038,0.00011268,2]
[403105302,1769167161244,-228.30492038,0.00011268,2]
[403105303,1769167165574,-192.65051937,0.00011268,2]
[403105304,1769167168809,-300.0,0.00011268,2]
[403105305,1769167171409,-291.88254912,0.00011268,2]
[403105306,1769167174136,-188.07215161,0.00011268,2]
[403105307,1769167175820,-202.24594434,0.00011268,2]
[403105308,1769167177642,-192.5714004,0.00011268,2]
[403105309,1769167179107,-322.67924845,0.00011268,2]
[403105310,1769167185414,-180.81417631,0.00011268,2]
[403105311,1769167189612,-166.66666668,0.00011268,2]
[403105312,1769167191128,-171.59410523,0.00011268,2]
[403105313,1769167193270,-152.15411431,0.00011268,2]
[403105314,1769167194728,-205.67296275,0.00011268,2]
[403105315,1769167198834,-80.090795,0.00011268,2]
[403105316,1769167198856,-103.53213301,0.00011382,2]
[403105317,1769167200201,-172.95592829,0.00011382,2]
[403105318,1769167203180,-181.72890537,0.00011382,2]
[403105319,1769167203960,150.0,7.638e-05,2]
[403105320,1769167204296,185.9,5e-05,2]
[403105321,1769167204368,150.0,8.332e-05,2]
[403105322,1769167204952,189.93,9.026e-05,2]
[403105323,1769167205238,-176.85977839,0.00011382,2]
[403105324,1769167205385,253.24,9.721e-05,2]
[403105325,1769167205824,316.55,0.00010415,2]
[403105326,1769167206690,-300.00561669,0.0001111,2]
[403105327,1769167209454,-79.85438331,0.0001111,2]
[403105328,1769167209478,-220.14561669,0.00011268,2]
[403105329,1769167212634,-233.37767133,0.00011268,2]
[403105330,1769167215772,-202.7423287,0.00011268,2]
[403105331,1769167218771,-349.87631776,0.00011268,2]
[403105332,1769167223124,-231.84706343,0.00011268,2]
[403105333,1769167224862,-155.60161972,0.00011268,2]
[403105334,1769167228092,-170.63425009,0.00011268,2]
[403105335,1769167230650,-211.25,0.00011268,2]
[403105336,1769167232195,-160.02,0.00011268,2]
[403105337,1769167233937,-181.33758206,0.00011268,2]
[403105338,1769167235476,-254.12662887,0.00011268,2]
[403105339,1769167238775,-153.2782393,0.00011268,2]
[403105340,1769167240644,-197.02923964,0.00011268,2]
[403105341,1769167242312,-221.18424187,0.00011268,2]
[403105342,1769167247242,-461.90324776,0.00011268,2]
[403105343,1769167251340,-890.7664242,0.00011268,2]
[403105344,1769167253181,-439.73662863,0.00011268,2]
[403105345,1769167276450,150.0,7.709e-05,2]
[403105346,1769167276843,159.61,8.41e-05,2]
[403105347,1769167277257,239.41,9.11e-05,2]
[403105348,1769167277670,319.22,9.811e-05,2]
[403105349,1769167278112,399.02,0.00010512,2]
[403105350,1769167288748,-315.16326416,0.00011213,2]
[403105351,1769167290261,-163.65673584,0.00011213,2]
[403105352,1769167290285,-5.83409223,0.00011268,2]
[403105353,1769167301074,5000.0,0.00011155,2]
[403105354,1769167302201,-259.30880772,0.00011268,2]
[403105355,1769167302226,-100.46316811,0.00011382,2]
[403105356,1769167304615,-236.91752687,0.00011325,2]
[403105357,1769167304636,-83.35207399,0.00011382,2]
[403105358,1769167308590,-179.48,0.00011382,2]
[403105359,1769167316497,5000.0,0.00011248,2]
[403105360,1769167317296,-216.7047579,0.00011382,2]
[403105361,1769167332633,179.5259878,0.00011382,2]
[403105362,1769167334399,-5000.0,0.00011557,2]
[403105363,1769167340912,0.01,0.00011557,2]
[403105364,1769167340936,4999.99,0.00011557,2]
[403105365,1769167349037,2061.69490664,0.00011557,2]
[403105366,1769167354440,150.0,7.708e-05,2]
[403105367,1769167354831,241.7,8.409e-05,2]
[403105368,1769167355257,362.54,9.11e-05,2]
[403105369,1769167355688,483.39,9.81e-05,2]
[403105370,1769167356086,604.24,0.00010511,2]
[403105371,1769167356477,725.09,0.00011212,2]
[403105372,1769167364302,5000.0,0.0001164,2]
[403105373,1769167386965,5000.0,0.00011674,2]
[403105374,1769167399414,-2125.84313752,0.00011674,2]
[403105375,1769167399441,-746.39415097,0.0001174,2]
[403105376,1769167399467,-1679.38683969,0.0001174,2]
[403105377,1769167399599,-2982.59102729,0.0001174,2]
[403105378,1769167402070,4034.82794542,0.00011674,2]
[403105379,1769167402092,805.66890841,0.00011674,2]
[403105380,1769167409685,5000.0,0.0001174,2]
[403105381,1769167415288,-300.0,0.00011808,2]
[403105382,1769167418319,1024.33773828,0.00011808,2]
[403105383,1769167426059,1000.0,0.00011808,2]
[403105384,1769167430394,150.0,7.713e-05,2]
[403105385,1769167430803,213.97,8.414e-05,2]
[403105386,1769167431214,320.95,9.115e-05,2]
[403105387,1769167431614,427.93,9.816e-05,2]
[403105388,1769167431973,-300.0,0.00011809,2]
[403105389,1769167432029,534.92,0.00010517,2]
[403105390,1769167432420,641.9,0.00011219,2]
[403105391,1769167434152,5000.0,0.00011809,2]
[403105392,1769167441931,3223.19,0.00011809,2]
[403105393,1769167441957,1776.81,0.00011809,2]
[403105394,1769167447414,-500.0,0.00011809,2]
[403105395,1769167447443,-500.0,0.00011809,2]
[403105396,1769167447473,-500.0,0.00011809,2]
[403105397,1769167447504,-500.0,0.00011809,2]
[403105398,1769167447534,-500.0,0.00011809,2]
[403105399,1769167447564,-500.0,0.00011809,2]
[403105400,1769167447595,-500.0,0.00011809,2]
[403105401,1769167447624,-500.0,0.00011809,2]
[403105402,1769167447654,-592.14432355,0.00011809,2]
[403105403,1769167447684,-323.93880938,0.00011809,2]
[403105404,1769167447834,-167.84373414,0.00011809,2]
[403105405,1769167447865,-500.0,0.00011809,2]
[403105406,1769167447892,-500.0,0.00011809,2]
[403105407,1769167447922,-500.0,0.00011809,2]
[403105408,1769167448205,-500.0,0.00011809,2]
[403105409,1769167448237,-500.0,0.00011809,2]
[403105410,1769167448267,-500.0,0.00011809,2]
[403105411,1769167448298,-500.0,0.00011809,2]
[403105412,1769167448328,-461.51889871,0.00011809,2]
[403105413,1769167448358,-500.0,0.00011809,2]
[403105414,1769167448389,-241.2847343,0.00011809,2]
[403105415,1769167448562,-258.7152657,0.00011809,2]
[403105416,1769167448593,-500.0,0.00011809,2]
[403105417,1769167448624,-500.0,0.00011809,2]
[403105418,1769167448654,-413.34984823,0.00011809,2]
[403105419,1769167448683,-500.0,0.00011809,2]
[403105420,1769167448712,-500.0,0.00011809,2]
[403105421,1769167448739,-500.0,0.00011809,2]
[403105422,1769167448768,-500.0,0.00011809,2]
[403105423,1769167448796,-500.0,0.00011809,2]
[403105424,1769167449915,317.17791627,0.00011809,2]
[403105425,1769167453236,300.0,0.00011808,2]
[403105426,1769167457680,1038.70185587,0.00011809,2]
[403105427,1769167457702,3961.29814413,0.00011809,2]
[403105428,1769167465676,1016.02400001,0.00011809,2]
[403105429,1769167473386,5000.0,0.00011809,2]
[403105430,1769167481527,22.68785586,0.00011809,2]
[403105431,1769167481549,4977.31214414,0.00011809,2]
[403105432,1769167497161,1983.30713908,0.00011809,2]
[403105433,1769167501285,300.0,0.00011808,2]
[403105434,1769167502602,300.0,0.00011808,2]
[403105435,1769167503299,300.0,0.00011808,2]
[403105436,1769167503437,1200.0,0.00011808,2]
[403105437,1769167507558,150.0,7.714e-05,2]
[403105438,1769167507958,233.71,8.416e-05,2]
[403105439,1769167508348,350.57,9.117e-05,2]
[403105440,1769167508747,205.11071678,0.00011809,2]
[403105441,1769167508776,467.42,9.818e-05,2]
[403105442,1769167509192,584.28,0.0001052,2]
[403105443,1769167509588,701.14,0.00011221,2]
[403105446,1769167547608,729.71476944,0.0001174,2]
[403105447,1769167550395,1313.48658499,0.0001174,2]
[403105448,1769167553197,2332.75217495,0.0001174,2]
[403105450,1769167562872,1716.70286092,0.00011801,2]
[403105451,1769167570596,1439.99335618,0.00011801,2]
[403105452,1769167587397,-4794.88928322,0.00011809,2]
[403105453,1769167587629,-591.30083779,0.00011811,2]
[403105454,1769167588227,150.0,7.712e-05,2]
[403105455,1769167588647,227.71,8.413e-05,2]
[403105456,1769167589053,341.56,9.114e-05,2]
[403105457,1769167589456,455.42,9.815e-05,2]
[403105458,1769167589889,569.27,0.00010516,2]
[403105460,1769167590809,683.12,0.00011217,2]
[403105461,1769167600191,5000.0,0.00011811,2]
[403105462,1769167615760,320.4740122,0.00011908,2]
[403105463,1769167623580,5000.0,0.00011908,2]
[403105465,1769167646936,4679.5359878,0.00011908,2]
[403105466,1769167646960,320.4640122,0.00011908,2]
[403105467,1769167664782,150.0,7.684e-05,2]
[403105468,1769167665122,208.65,8.382e-05,2]
[403105469,1769167665336,312.97,9.081e-05,2]
[403105470,1769167665743,417.29,9.779e-05,2]
[403105471,1769167666015,232.46048039,0.00011808,2]
[403105472,1769167666050,165.75361595,0.00011808,2]
[403105473,1769167666078,500.0,0.00011808,2]
[403105474,1769167666106,273.50209986,0.00011808,2]
[403105475,1769167666144,379.26109425,0.00011808,2]
[403105476,1769167666174,521.61,0.00010478,2]
[403105478,1769167666547,625.94,0.00011176,2]
[403105479,1769167666964,730.26,0.00011875,2]
[403105480,1769167669811,5000.0,0.00011908,2]
[403105482,1769167692048,5000.0,0.00011917,2]
[403105483,1769167714927,5000.0,0.00011917,2]
[403105484,1769167720978,0.01,0.00011709,2]
[403105485,1769167721006,10000.01,0.00011709,2]
[403105486,1769167721033,10000.01,0.00011709,2]
[403105487,1769167721063,10000.01,0.00011709,2]
[403105488,1769167738028,-5000.0,0.00011592,2]
[403105489,1769167739120,150.0,7.794e-05,2]
[403105490,1769167739522,165.99,8.502e-05,2]
[403105491,1769167741987,-248.98,9.211e-05,2]